Workbook

Sheet 一般收入
A1: 清城区2025年一般公共预算收入预算调整表(附表1)
E2: 单位：万元
A3: 项 目 | B3: 2025年年初预算 | C3: 2025年调整预算数（增或减） | D3: 2025年调整预算 后总额 | E3: 调整说明
A4: 收入总计 | B4: =B5+B35+B39+B40+B41+B42+B43 -> 788,669 | C4: =C5+C35+C39+C40+C41+C42+C43 -> -53,318 | D4: =D5+D35+D39+D40+D41+D42+D43 -> 735,351
A5: （一）一般公共预算收入 | B5: =B6+B21 -> 285,850 | C5: =C6+C21 -> 22,173 | D5: =D6+D21 -> 308,023
A6: （1）税收收入 | B6: 180,007 | C6: =D6-B6 -> -26,321 | D6: 153,686
A7: 增值税 | B7: 59,022 | C7: =D7-B7 -> -2,384 | D7: 56,638
A8: 企业所得税 | B8: 22,379 | C8: -4,297 | D8: 18,082
A9: 个人所得税 | B9: 7,501 | C9: -138 | D9: 7,363
A10: 资源税 | B10: 744 | C10: 71 | D10: 815
A11: 城市维护建设税 | B11: 10,460 | C11: -1,591 | D11: 8,869
A12: 房产税 | B12: 14,542 | C12: -6,386 | D12: 8,156
A13: 印花税 | B13: 4,400 | C13: 120 | D13: 4,520
A14: 城镇土地使用税 | B14: 3,724 | C14: -2,288 | D14: 1,436
A15: 土地增值税 | B15: 27,486 | C15: 726 | D15: 28,212
A16: 车船税 | B16: 4,947 | C16: -681 | D16: 4,266
A17: 耕地占用税 | B17: 2,002 | C17: -1,443 | D17: 559
A18: 契税 | B18: 22,534 | C18: -8,014 | D18: 14,520
A19: 环境保护税 | B19: 253 | C19: -3 | D19: 250
A20: 其他税收收入 | B20: 13 | C20: -13 | D20: 0
A21: （2）非税收入 | B21: 105,843 | C21: =D21-B21 -> 48,494 | D21: 154,337
A22: 1、专项收入 | B22: 4,570 | C22: -965 | D22: 3,605
A23: 教育附加收入 | B23: 4,420 | C23: -940 | D23: 3,480
A24: 文化事业建设费 | B24: 150 | C24: -25 | D24: 125
A25: 土地收益计提的教育资金 | B25: 0 | C25: 0 | D25: 0
A26: 土地收益计提的农田水利建设资金 | B26: 0 | C26: 0 | D26: 0
A27: 森林植被恢复费 | B27: 0 | C27: 0 | D27: 0
A28: 2、行政事业性收费收入 | B28: 560 | C28: 2,255 | D28: 2,815
A29: 3、罚没收入 | B29: 8,266 | C29: 3,155 | D29: 11,421
A30: 4、国有资本经营收入 | B30: 0 | C30: 44,866 | D30: 44,866
A31: 5、国有资源(资产)有偿使用收入 | B31: 76,798 | C31: 5,023 | D31: 81,821
A32: 6、政府住房基金收入 | B32: 2,450 | C32: -199 | D32: 2,251
A33: 7、捐赠收入 | B33: 0 | C33: 0 | D33: 0
A34: 8、其他收入 | B34: 13,199 | C34: -5,641 | D34: 7,558
A35: （二）上级补助收入 | B35: 300,489 | C35: =D35-B35 -> 17,326 | D35: =D36+D37+D38 -> 317,815
A36: 返还性收入 | B36: 19,746 | C36: 0 | D36: 19,746
A37: 一般性转移支付收入 | B37: 268,590 | C37: 5,049 | D37: =269139+4500 -> 273,639
A38: 专项转移支付收入 | B38: 12,153 | C38: 12,277 | D38: 24,430
A39: （三）上年结转收入 | B39: 95,980 | C39: -4,167 | D39: 91,813
A40: （四）调入资金 | B40: 99,350 | C40: -99,350 | D40: 0
A41: （五）一般债务转贷收入 | B41: 0 | C41: 10,700 | D41: 10,700
A42: （六）动用预算稳定调节基金 | B42: 7,000 | C42: 0 | D42: 7,000
A43: （七）区域间转移性收入 | B43: 0 | C43: 0 | D43: 0

Sheet 一般支出
A1: 清城区2025年一般公共预算支出预算调整表(附表2)
E2: 单位：万元
A3: 项 目 | B3: 2025年年初预算 | C3: 2025年调整预算数（增或减） | D3: 2025年调整预算后总额 | E3: 调整说明
A4: 支出总计 | B4: =B5+B29+B36+B37 -> 788,669 | C4: =C5+C29+C36+C37 -> -53,318 | D4: =D5+D29+D36+D37 -> 735,351
A5: 一、一般公共预算支出 | B5: =SUM(B6:B28) -> 692,711 | C5: =SUM(C6:C28) -> -98,841 | D5: =SUM(D6:D28) -> 593,870
A6: 一般公共服务 | B6: 81,240 | C6: =D6-B6 -> -26,588 | D6: 54,652
A7: 国防支出 | B7: 1,166 | C7: =D7-B7 -> -100 | D7: 1,066
A8: 公共安全支出 | B8: 52,325 | C8: -2,000 | D8: 50,325
A9: 教育支出 | B9: 234,698 | C9: -21,478 | D9: 213,220
A10: 科学技术支出 | B10: 1,347 | C10: -87 | D10: 1,260
A11: 文化旅游体育与传媒 | B11: 5,188 | C11: -2,000 | D11: 3,188
A12: 社会保障和就业支出 | B12: 82,836 | C12: -7,853 | D12: 74,983
A13: 卫生健康支出 | B13: 74,374 | C13: -4,249 | D13: 70,125
A14: 节能环保支出 | B14: 4,090 | C14: 996 | D14: 5,086
A15: 城乡社区支出 | B15: 27,831 | C15: -9,667 | D15: 18,164
A16: 农林水支出 | B16: 81,878 | C16: -21,780 | D16: 60,098
A17: 交通运输支出 | B17: 9,216 | C17: 705 | D17: 9,921
A18: 资源勘探信息等支出 | B18: 901 | C18: 679 | D18: 1,580
A19: 商业服务业等支出 | B19: 225 | C19: 777 | D19: 1,002
A20: 其他金融支出 | B20: 189 | C20: -89 | D20: 100
A21: 自然资源海洋气象等 | B21: 2,990 | C21: 3,862 | D21: 6,852
A22: 住房保障支出 | B22: 8,368 | C22: 152 | D22: 8,520
A23: 粮油物资储备支出 | B23: 1,653 | C23: -1,603 | D23: 50
A24: 灾害防治及应急管理 | B24: 6,766 | C24: -2,754 | D24: 4,012
A25: 预备费 | B25: 6,930 | C25: -5,330 | D25: 1,600
A26: 其他支出 | B26: 0 | C26: 0 | D26: 0
A27: 债务付息支出 | B27: 8,500 | C27: -443 | D27: 8,057
A28: 债务发行费用支出 | B28: 0 | C28: 9 | D28: 9
A29: 二、转移性支出 | B29: =B30+B34+B35 -> 95,668 | C29: 0 | D29: 95,668
A30: 上解上级支出 | B30: =SUM(B31:B33) -> 95,668 | C30: 0 | D30: =SUM(D31:D33) -> 95,668
A31: 出口退税专项上解支出 | B31: 0 | C31: 0 | D31: 0
A32: 专项上解支出 | B32: 45,482 | C32: 0 | D32: 45,482
A33: 体制上解支出 | B33: 50,186 | C33: 0 | D33: 50,186
A34: 安排预算稳定调节基金 | B34: 0 | C34: 0 | D34: 0
A35: 区域间转移性支出(土地指标调剂转移性支出 ) | B35: 0 | C35: 0 | D35: 0
A36: 三、债务还本支出 | B36: 290 | C36: 2,550 | D36: 2,840
A37: 四、年终结余（结转下年） | B37: 0 | C37: 42,973 | D37: =27522+4500+10951 -> 42,973

Sheet 基金收入
A1: 清城区2025年政府性基金收入预算调整表(附表3)
E2: 单位：万元
A3: 项目 | B3: 2025年年初预算 | C3: 2025年调整预算数（增或减） | D3: 2025年调整预算 后总额 | E3: 调整说明
A4: 收入总计 | B4: =B5+B19 -> 213,307 | C4: =C5+C19 -> 289,709 | D4: =D5+D19 -> 503,016
A5: 一、政府性基金收入 | B5: =SUM(B6:B18) -> 167,617 | C5: =D5-B5 -> -103,530 | D5: =SUM(D6:D18) -> 64,087
A6: 港口建设费收入 | C6: =D6-B6 -> 0 | D6: 0
A7: 国家电影事业发展专项资金收入 | C7: =D7-B7 -> 0 | D7: 0
A8: 新增建设用地土地有偿使用费收入 | C8: =D8-B8 -> 0 | D8: 0
A9: 国有土地收益基金收入 | C9: =D9-B9 -> 0 | D9: 0
A10: 农业土地开发资金收入 | B10: 350 | C10: -350 | D10: 0
A11: 国有土地使用权出让收入 | B11: 164,957 | C11: -102,902 | D11: 62,055
A12: 大中型水库库区基金收入 | C12: 0 | D12: 0
A13: 彩票公益金收入 | B13: 2,310 | C13: -278 | D13: 2,032
A14: 城市基础设施配套费收入 | C14: 0 | D14: 0
A15: 小型水库移民扶助基金收入 | C15: 0 | D15: 0
A16: 污水处理费收入 | C16: 0 | D16: 0
A17: 彩票发行机构和彩票销售机构的业务费用 | C17: 0 | D17: 0
A18: 其他政府性基金收入 | C18: 0 | D18: 0
A19: 二、转移性收入 | B19: =SUM(B20:B23) -> 45,690 | C19: =SUM(C20:C23) -> 393,239 | D19: =SUM(D20:D23) -> 438,929
A20: 上级补助收入 | B20: 4,670 | C20: 30,303 | D20: =20808+7779+6386 -> 34,973
A21: 上年结转收入 | B21: 41,020 | C21: -4,220 | D21: 36,800
A22: 超长期特别国债转移支付收入 | B22: 0 | C22: 6,362 | D22: 6,362
A23: 债务转贷收入（专项债券） | B23: 0 | C23: 360,794 | D23: 360,794

Sheet 基金支出
A1: 清城区2025年政府性基金支出预算调整表(附表4)
E2: 单位：万元
A3: 项 目 | B3: 2025年年初预算 | C3: 2025年调整预算数（增或减） | D3: 2025年调整预算 后总额 | E3: 调整说明
A4: 支出合计 | B4: =B5+B40 -> 213,307 | C4: =C5+C40 -> 289,709 | D4: =D5+D40 -> 503,016
A5: 一、政府性基金支出 | B5: =B6+B9+B10+B18+B22+B28+B30+B31+B32+B37+B38+B39 -> 113,791 | C5: =C6+C9+C10+C18+C22+C28+C30+C31+C32+C37+C38+C39 -> 359,960 | D5: =D6+D9+D10+D18+D22+D28+D30+D31+D32+D37+D38+D39 -> 473,751
A6: （一）文化旅游体育与传媒支出 | B6: 20 | C6: =D6-B6 -> 53 | D6: =D7+D8 -> 73
A7: 国家电影事业发展专项资金安排的支出 | B7: 20 | C7: =D7-B7 -> 53 | D7: 73
A8: 旅游发展基金支出 | B8: 0 | C8: 0 | D8: 0
A9: （二）节能环保支出 | B9: 0 | C9: 0 | D9: 0
A10: （三）城乡社区支出 | B10: =SUM(B11:B17) -> 55,753 | C10: =SUM(C11:C17) -> 8,873 | D10: =SUM(D11:D17) -> 64,626
A11: 国有土地使用权出让收入安排的支出 | B11: 47,332 | C11: 8,768 | D11: 56,100
A12: 国有土地收益基金安排的支出 | C12: 0 | D12: 0
A13: 农业土地开发资金收入安排的支出 | B13: 420 | C13: 94 | D13: 514
A14: 污水处理费安排的支出 | B14: 0 | C14: 143 | D14: 143
A15: 土地储备专项债券收入安排的支出 | C15: 3,672 | D15: 3,672
A16: 城市基础设施配套费收入安排的支出 | B16: 8,001 | C16: -3,804 | D16: 4,197
A17: 国有土地使用权出让收入对应专项债务收入安排的支出 | C17: 0 | D17: 0
A18: （四）农林水支出 | B18: =SUM(B19:B21) -> 2,763 | C18: 2,631 | D18: =SUM(D19:D21) -> 5,394
A19: 大中型水库库区基金安排的支出 | B19: 35 | C19: 131 | D19: 166
A20: 大中型水库移民后期扶持基金支出 | B20: 2,245 | C20: 2,817 | D20: 5,062
A21: 小型水库移民扶助基金安排的支出 | B21: 483 | C21: -317 | D21: 166
A22: （五）交通运输支出 | B22: 0 | C22: 0 | D22: 0
A23: 公路水路运输 | C23: 0 | D23: 0
A24: 车辆通行费及对应专项债务收入安排的支出 | C24: 0 | D24: 0
A25: 港口建设费及对应专项债务收入安排的支出 | C25: 0 | D25: 0
A26: 民航发展基金支出 | C26: 0 | D26: 0
A27: 港口建设费安排的支出 | B27: 0 | C27: 0 | D27: 0
A28: （六）资源勘探工业信息等支出 | C28: 0 | D28: 0
A29: 新型墙体材料专项基金及对应专项债务收入安排的支出 | C29: 0 | D29: 0
A30: （七）金融支出 | C30: 0 | D30: 0
A31: （八）住房保障支出（超长期特别国债安排的支出） | B31: 186 | C31: 1,425 | D31: 1,611
A32: （九）其他支出 | B32: =SUM(B33:B36) -> 15,806 | C32: =SUM(C33:C36) -> 329,328 | D32: =SUM(D33:D36) -> 345,134
A33: 其他政府性基金安排的支出 | C33: 0 | D33: 0
A34: 其他地方自行试点项目收益专项债务收入安排的支出 | B34: 12,163 | C34: 329,328 | D34: 341,491
A35: 彩票发行销售机构业务费安排的支出 | B35: 0 | C35: 0 | D35: 0
A36: 彩票公益金安排的支出 | B36: 3,643 | C36: 0 | D36: 3,643
A37: （十）超长期特别国债安排的其他支出 | B37: 5,663 | C37: 4,937 | D37: 10,600
A38: （十一）债务付息支出 | B38: 33,600 | C38: 12,417 | D38: 46,017
A39: （十二）债务发行费用支出 | B39: 0 | C39: 296 | D39: 296
A40: 二、转移性支出 | B40: =B41+B42+B43+B44 -> 99,516 | C40: =C41+C42+C43+C44 -> -70,251 | D40: =D41+D42+D43+D44 -> 29,265
A41: 上解支出 | B41: 0 | C41: 0 | D41: 0
A42: 调出资金 | B42: 97,631 | C42: -97,631 | D42: 0
A43: 年终结余（结转下年支出） | B43: 0 | C43: 420 | D43: 420
A44: 地方政府专项债务还本支出 | B44: 1,885 | C44: 26,960 | D44: 28,845

Sheet 国有资本经营
A1: 清城区2025年国有资本经营预算调整表（附表5）
A3: 收 入 | F3: 支 出
A4: 项目 | B4: 2025年年初预算 | C4: 2025年调整预算数（增或减） | D4: 2025年调整预算 后总额 | F4: 项目 | G4: 2025年年初预算 | H4: 2025年调整预算数（增或减） | I4: 2025年调整预算 后总额
A5: 国有资本经营收入 | B5: 1,944 | C5: -1,799 | D5: =D6+D7+D10 -> 145 | F5: 国有资本经营预算支出 | G5: 325 | H5: =I5-G5 -> -227 | I5: 98
A6: （一）利润收入 | B6: 1,562 | C6: -1,562 | D6: 0 | F6: （一）解决历史遗留问题及改革成本支出 | G6: 45 | H6: 0 | I6: 45
A7: （二）股利、股息收入 | C7: 127 | D7: 127 | F7: （二）国有企业资本金注入 | H7: 0 | I7: 0
A8: （三）产权转让收入 | D8: 0 | F8: （三）国有企业政策性补贴 | H8: 0 | I8: 0
A9: （四）清算收入 | D9: 0 | F9: （四）其他国有资本经营预算支出 | G9: 280 | H9: -227 | I9: 53
A10: （五）其他国有资本经营收入 | B10: 382 | C10: =D10-B10 -> -364 | D10: 18 | H10: 0
D11: 0 | H11: 0
A12: 本年收入合计 | B12: 1,944 | C12: -1,799 | D12: 145 | F12: 本年支出合计 | G12: 325 | H12: -227 | I12: 98
A13: 转移性收入 | B13: 45 | C13: 0 | D13: . | F13: 转移性支出 | G13: =G14+G15 -> 1,719 | H13: -1,719 | I13: 0
A14: 国有资本经营预算转移支付收入 | B14: 45 | C14: 0 | D14: 45 | F14: （一）国有资本经营预算转移支付 | H14: =I14-G14 -> 0 | I14: 0
D15: 0 | F15: （二）调出资金 | G15: 1,719 | H15: -1,719 | I15: 0
D16: 0 | H16: 0 | I16: 0
A17: 上年结转 | B17: 55 | C17: -5 | D17: 50 | F17: 结转下年 | G17: 0 | H17: 142 | I17: 142
A18: 收入总计 | B18: 2,044 | C18: =C12+C17 -> -1,804 | D18: =D12+D14+D17 -> 240 | F18: 支出总计 | G18: =G12+G13+G17 -> 2,044 | H18: -1,804 | I18: =I12+I14+I17 -> 240

Sheet 社保基金收入
A1: 清城区2025年机关事业单位养老保险基金收入调整表（附表6）
D2: 单位：万元
A3: 项 目 | B3: 2025年年初 预算数 | C3: 2025年 拟调整预算数 | D3: 2025年 (调整后)预算数
A4: 机关事业单位基本养老保险基金收入 | B4: =B5+B6+B7+B8+B9 -> 45,563 | C4: =C5+C6+C7+C8+C9 -> -7,939 | D4: =B4+C4 -> 37,624
A5: 其中：征收收入 | B5: 36,501 | C5: -294 | D5: 36,207
A6: 财政补贴收入 | B6: 8,202 | C6: -8,202 | D6: 0
A7: 利息收入 | B7: 90 | C7: 68 | D7: 158
A8: 转移收入 | B8: 770 | C8: 485 | D8: 1,255
A9: 其他收入 | B9: 0 | C9: 4 | D9: 4
A10: 上年结余收入 | B10: 15,037 | C10: -77 | D10: 14,960
A11: 收入总计 | B11: =B4+B10 -> 60,600 | C11: =C4+C10 -> -8,016 | D11: 52,584

Sheet 社保基金支出
A1: 清城区2025年机关事业单位养老保险基金支出调整表（附表7）
D2: 单位：万元
A3: 项 目 | B3: 2025年 预算数 | C3: 2025年 拟调整预算数 | D3: 2025年 (调整后)预算数
A4: 机关事业单位基本养老保险基金支出 | B4: =B5+B6+B7+B8 -> 43,617 | C4: =C5+C6+C7+C8 -> -1,791 | D4: =B4+C4 -> 41,826
A5: 其中：养老保险待遇支出 | B5: 43,169 | C5: -2,217 | D5: 40,952
A6: 转移支出 | B6: 103 | C6: 45 | D6: 148
A7: 其他支出 | B7: 0 | C7: 491 | D7: 491
A8: 上解上级支出 | B8: 345 | C8: -110 | D8: 235
A9: 结转下年支出 | B9: 16,983 | C9: -6,225 | D9: 10,758
A10: 支出总计 | B10: =B4+B9 -> 60,600 | C10: -8,016 | D10: 52,584

Sheet 债券转贷收入8-1
A1: 清城区2025年债券资金转贷收入情况表（附表8-1）
E2: 单位：万元
A3: 资金性质 | B3: 指标单位 | C3: 上级发文字号 | D3: 指标摘要 | E3: 金额 | F3: 备注
A4: 一般债券 | B4: 清城区 | C4: 清财债〔2025〕18号 | D4: 2024年一般债券（清城区） | E4: 8,000.00
B5: 小计（新增一般债券） | E5: 8,000.00
B6: 清城区 | C6: 清财债〔2025〕14号 | D6: 2024年清远市再融资一般债券（清城） | E6: 2,490.00
B7: 清城区 | C7: 清财债〔2025〕20号 | D7: 2024年清远市再融资一般债券（清城） | E7: 210.00
B8: 小计（再融资一般债券） | E8: 2,700.00
B9: 清城区一般债券总计 | E9: 10,700.00
A10: 专项债券 | B10: 清城区 | C10: 清财债〔2025〕1号 | D10: 2025年专项债券（清城区） | E10: 86,500.00
B11: 清城区 | C11: 清财债〔2025〕5号 | D11: 2025年专项债券（清城区） | E11: 33,000.00
B12: 清城区 | C12: 清财债〔2025〕6号 | D12: 2025年专项债券（清城区） | E12: 19,000.00
B13: 清城区 | C13: 清财债〔2025〕7号 | D13: 2025年专项债券（清城区） | E13: 36,000.00
B14: 清城区 | C14: 清财债〔2025〕9号 | D14: 2025年专项债券（清城区） | E14: 7,900.00
B15: 清城区 | C15: 清财债〔2025〕12号 | D15: 2025年专项债券（清城区） | E15: 2,000.00
B16: 清城区 | C16: 清财债〔2025〕12号 | D16: 2025年专项债券-土地储备专项债券（清城区） | E16: 3,672.00
B17: 清城区 | C17: 清财债〔2025〕16号 | D17: 2025年专项债券（清城区） | E17: 37,590.00
B18: 清城区 | C18: 清财债〔2025〕18号 | D18: 2025年专项债券（清城区） | E18: 80,000.00
B19: 清城区 | C19: 清财债〔2025〕19号 | D19: 2025年专项债券（清城区） | E19: 14,338.00
B20: 清城区 | C20: 清财债〔2025〕22号 | D20: 2025年专项债券（清城区） | E20: 13,000.00
B21: 小计（新增专项债券） | E21: =SUM(E10:E20) -> 333,000.00
B22: 清城区 | C22: 清财债〔2025〕10号 | D22: 2025年清远市再融资专项债券（清城） | E22: 17,210.00
B23: 清城区 | C23: 清财债〔2025〕14号 | D23: 2025年清远市再融资专项债券（清城） | E23: 584.00
B24: 清城区 | C24: 清财债〔2025〕23号 | D24: 2025年清远市再融资专项债券（清城） | E24: 10,000.00
B25: 小计（再融资专项债券） | E25: 27,794.00
B26: 清城区专项债券总计 | E26: 360,794.00
A27: 2025年债券资金总计 | E27: 371,494.00

Sheet 债券项目表8-2
A1: 清城区2025年债券资金项目安排情况表（附表8-2）
A2: 编制单位：清远市清城区财政局 | G2: 单位：万元
A3: 序号 | B3: 项目名称 | C3: 债券类型 | D3: 项目单位 | E3: 发行时安排金额 | F3: 债券调整金额 | G3: 调整后债券金额
A4: 1 | B4: 清城区乡镇公办学校扩建工程及校园基础设施升级改造项目 | C4: 一般债券 | D4: 区教育局 | E4: 2,100.00 | G4: 2,100.00
A5: 2 | B5: 清城区区直义务教育阶段学校新建、扩建、改造项目 | C5: 一般债券 | D5: 区教育局 | E5: 3,540.00 | G5: 3,540.00
A6: 3 | B6: 清远市清城区松苏岭小学（暂名）建设项目 | C6: 一般债券 | D6: 区教育局 | E6: 1,000.00 | G6: 1,000.00
A7: 4 | B7: 清远市清城区石龙学校项目及周边道路改造工程 | C7: 一般债券 | D7: 区教育局 | E7: 160.00 | G7: 160.00
A8: 5 | B8: 横荷街公立学校基础设施扩建改造提升项目 | C8: 一般债券 | D8: 横荷街道办事处 | E8: 500.00 | G8: 500.00
A9: 6 | B9: 清城区石角镇香港劳工子弟田心希望学校教学综合楼改（扩）建项目 | C9: 一般债券 | D9: 石角镇人民政府 | E9: 700.00 | G9: 700.00
A10: 7 | B10: 再融资债券 | C10: 一般债券 | D10: 区财政 | E10: 2,700.00 | G10: 2,700.00
B11: 一般债券小计 | E11: 10,700.00 | F11: 0 | G11: 10,700.00
A12: 8 | B12: 广清纺织服装产业有序转移园基础配套设施项目 | C12: 专项债券 | D12: 石角镇人民政府 | E12: 54,000.00 | G12: 54,000.00
A13: 9 | B13: 广清产业园南部产城融合园区基础设施建设项目 | C13: 专项债券 | D13: 清城区工信局 | E13: 39,038.00 | G13: 39,038.00
A14: 10 | B14: 国家城乡融合发展试验区清城区产业园区基础设施建设项目 | C14: 专项债券 | D14: 清城区工信局 | E14: 32,000.00 | F14: -9,000.00 | G14: 23,000.00
A15: 11 | B15: 广清经济特别合作区供排水建设项目 | C15: 专项债券 | D15: 区水利局/顺建公司 | E15: 15,500.00 | F15: 1,000.00 | G15: 16,500.00
A16: 12 | B16: 清城区东城街乡村振兴建设项目 | C16: 专项债券 | D16: 东城街道办事处 | E16: 13,200.00 | G16: 13,200.00
A17: 13 | B17: 清远市清城区美丽乡村建设工程 | C17: 专项债券 | D17: 区农业农村局 | E17: 10,000.00 | F17: 900.00 | G17: 10,900.00
A18: 14 | B18: 广清经济特别合作区清城区防汛抗旱水利提升工程 | C18: 专项债券 | D18: 清城区水利局 | E18: 9,000.00 | G18: 9,000.00
A19: 15 | B19: 国家城乡融合发展试验区广清接合片区清城区龙塘区域融合发展提升项目 | C19: 专项债券 | D19: 清城区龙塘镇 | E19: 5,500.00 | G19: 5,500.00
A20: 16 | B20: 清城区智慧城市基础设施建设项目 | C20: 专项债券 | D20: 区政务服务数据管理局 | E20: 5,500.00 | G20: 5,500.00
A21: 17 | B21: 横荷街产业园区基础设施建设项目 | C21: 专项债券 | D21: 横荷街道办事处 | E21: 5,150.00 | G21: 5,150.00
A22: 18 | B22: 清城区北部片区美丽圩镇提升项目 | C22: 专项债券 | D22: 区城市综合管理局 | E22: 5,000.00 | G22: 5,000.00
A23: 19 | B23: 清城区中医院及医疗卫生机构体系建设项目 | C23: 专项债券 | D23: 清城区卫健局 | E23: 4,500.00 | G23: 4,500.00
A24: 20 | B24: 清远市清城区养老服务中心建设项目 | C24: 专项债券 | D24: 清城区民政局 | E24: 3,100.00 | F24: 1,400.00 | G24: 4,500.00
A25: 21 | B25: 2025年清远市清城区存量土地收回收购项目（第二期）（包一） | C25: 专项债券 | D25: 清城区土地储备中心 | E25: 3,672.00 | G25: 3,672.00
A26: 23 | B26: 凤城街2021年老旧小区升级改造及周边环境整治项目 | C26: 专项债券 | D26: 凤城街道办事处 | E26: 3,200.00 | G26: 3,200.00
A27: 24 | B27: 清城区石角镇美丽圩镇农房风貌管控及周边提升工程 | C27: 专项债券 | D27: 石角镇人民政府 | E27: 3,150.00 | G27: 3,150.00
A28: 25 | B28: 清远市清城区停车场建设项目 | C28: 专项债券 | D28: 清城区交通局 | E28: 0.00 | F28: 3,000.00 | G28: 3,000.00
A29: 26 | B29: 清城区石角镇美丽圩镇建设项目 | C29: 专项债券 | D29: 清城区石角镇 | E29: 2,800.00 | G29: 2,800.00
A30: 27 | B30: 凤城街沙田产业园配套设施建设项目 | C30: 专项债券 | D30: 凤城街道办事处 | E30: 2,500.00 | G30: 2,500.00
A31: 28 | B31: 国家城乡融合发展试验区清远市预制菜产业园基础设施建设项目 | C31: 专项债券 | D31: 飞来峡镇人民政府 | E31: 2,000.00 | F31: 214.00 | G31: 2,214.00
A32: 30 | B32: 清远市龙塘镇定安、长冲、沙溪等产业园区基础设施建设项目 | C32: 专项债券 | D32: 龙塘镇人民政府 | E32: 2,000.00 | G32: 2,000.00
A33: 31 | B33: 清远市清城区市政及公共服务新型基础设施建设项目 | C33: 专项债券 | D33: 区政务服务数据管理局 | E33: 0.00 | F33: 1,900.00 | G33: 1,900.00
A34: 32 | B34: 国家城乡融合发展试验区广清接合片区（清远清城）农业产业园周边配套设施建设项目 | C34: 专项债券 | D34: 区农业农村局 | E34: 1,500.00 | G34: 1,500.00
A35: 33 | B35: 国家城乡融合发展试验区清远市高新区飞来峡片区预制菜产业园（二期）基础设施建设项目 | C35: 专项债券 | D35: 清城区飞来峡镇 | E35: 1,000.00 | G35: 1,000.00
A36: 34 | B36: 横荷街垦造水田项目 | C36: 专项债券 | D36: 横荷街道办事处 | E36: 1,000.00 | G36: 1,000.00
A37: 35 | B37: 清城区凤城社区卫生服务中心提升改造项目 | C37: 专项债券 | D37: 凤城街道办事处 | E37: 1,000.00 | G37: 1,000.00
A38: 36 | B38: 清城区全域供水建设项目 | C38: 专项债券 | D38: 区水利局 | E38: 1,000.00 | G38: 1,000.00
A39: 37 | B39: 清城区人民医院新院建设工程 | C39: 专项债券 | D39: 区卫健局 | E39: 1,000.00 | G39: 1,000.00
A40: 38 | B40: 清城区洲心街城边村、城乡结合部环境综合整治项目 | C40: 专项债券 | D40: 洲心街道办事处 | E40: 1,000.00 | G40: 1,000.00
A41: 39 | B41: 清远市清城区龙塘镇城市更新旧村改造基础设施建设项目 | C41: 专项债券 | D41: 龙塘镇人民政府 | E41: 1,000.00 | G41: 1,000.00
A42: 41 | B42: 凤城街资源回收体系建设项目 | C42: 专项债券 | D42: 凤城街道办事处 | E42: 0.00 | F42: 800.00 | G42: 800.00
A43: 44 | B43: 清远市清城区东城和凤城片区排涝体系改造提升工程 | C43: 专项债券 | D43: 清城区水利局 | E43: 500.00 | G43: 500.00
A44: 46 | B44: 清远市清城区清远鸡省级现代农业产业园配套设施（路灯建设及维修工程） | C44: 专项债券 | D44: 飞来峡镇人民政府 | E44: 340.00 | F44: -214.00 | G44: 126.00
A45: 47 | B45: 广清经济特别合作区广清产业园基础设施配套项目 | C45: 专项债券 | D45: 广清产业园管理委员会规划建设局 | E45: 8,000.00 | G45: 8,000.00
A46: 48 | B46: 清远市燕湖新城商务区（二期） | C46: 专项债券 | D46: 清远市代建局 | E46: 9,300.00 | G46: 9,300.00
A47: 49 | B47: 清城区存量政府投资项目 | C47: 专项债券 | D47: 清城区政府 | E47: 85,550.00 | G47: 85,550.00
A48: 50 | B48: 再融资债券 | C48: 专项债券 | D48: 区财政 | E48: 27,794.00 | G48: 27,794.00
A49: 专项债券小计 | E49: 360,794.00 | F49: 0 | G49: 360,794.00
A50: 2025年债券资金总计 | E50: 371,494.00 | F50: 0 | G50: 371,494.00
